bitfinex-derivatives/quotes_BNBF0:USTF0_20250303
["timestamp","ask_amount","ask_price","bid_price","bid_amount"]
[1740960641933,1.83523703,622.83,620.75,0.32219089]
[1740960642125,0.32107882,622.9,620.75,0.32219089]
[1740960642126,1.83523703,622.82,620.75,0.32219089]
[1740960642326,0.295373,622.81,620.75,0.32219089]
[1740960642533,0.295373,622.8,620.75,0.32219089]
[1740960642729,0.295373,622.89,620.75,0.32219089]
[1740960643032,1.83483098,622.88,620.75,0.32219089]
[1740960643234,1.83517052,622.87,620.75,0.32219089]
[1740960643435,1.83513937,622.86,620.75,0.32219089]
[1740960643628,1.83513937,622.85,620.75,0.32219089]
[1740960643935,1.83475464,622.84,620.75,0.32219089]
[1740960644130,1.83475464,622.83,620.75,0.32219089]
[1740960644334,1.83475464,622.82,620.75,0.32219089]
[1740960644535,1.83475464,622.81,620.75,0.32219089]
[1740960644729,1.83475464,622.8,620.75,0.32219089]
[1740960644933,1.83475464,622.79,620.75,0.32219089]
[1740960645132,1.83475464,622.78,620.75,0.32219089]
[1740960645333,0.32107882,622.9,620.75,0.32219089]
[1740960645334,1.83576682,622.77,620.75,0.32219089]
[1740960645631,0.32107882,622.9,620.75,0.32219089]
[1740960645632,1.83576682,622.76,620.75,0.32219089]
[1740960645833,1.83576682,622.75,620.75,0.32219089]
[1740960646136,1.83576682,622.74,620.75,0.32219089]
[1740960646432,0.29550171,622.73,620.75,0.32219089]
[1740960646632,0.29550171,622.72,620.75,0.32219089]
[1740960646936,1.83594939,622.71,620.75,0.32219089]
[1740960647234,1.83594939,622.7,620.75,0.32219089]
[1740960647434,0.32107882,622.9,620.75,0.32219089]
[1740960647435,1.83594939,622.69,620.75,0.32219089]
[1740960647737,0.32119742,622.67,620.75,0.32219089]
[1740960647936,1.83594939,622.66,620.75,0.32219089]
[1740960648136,1.83594939,622.65,620.75,0.32219089]
[1740960648335,0.32121805,622.63,620.75,0.32219089]
[1740960648532,1.83594939,622.62,620.75,0.32219089]
[1740960648729,1.83594939,622.61,620.75,0.32219089]
[1740960648930,1.83594939,622.6,620.75,0.32219089]
[1740960649133,1.83594939,622.59,620.75,0.32219089]
[1740960649329,1.83594939,622.58,620.75,0.32219089]
[1740960649533,1.83594939,622.57,620.75,0.32219089]
[1740960649734,1.83594939,622.56,620.75,0.32219089]
[1740960649936,0.32126449,622.54,620.75,0.32219089]
[1740960650237,1.83594939,622.53,620.75,0.32219089]
[1740960650431,1.83594939,622.52,620.75,0.32219089]
[1740960650637,1.83594939,622.51,620.75,0.32219089]
[1740960650834,0.32126449,622.54,620.75,0.32219089]
[1740960650835,1.83594939,622.5,620.75,0.32219089]
[1740960651032,1.83594939,622.49,620.75,0.32219089]
[1740960651234,1.8394675,622.48,620.75,0.32219089]
[1740960651538,1.8394675,622.47,620.75,0.32219089]
[1740960651739,0.29550171,622.46,620.75,0.32219089]
[1740960651930,0.29550171,622.45,620.75,0.32219089]
[1740960652134,0.29550171,622.53,620.75,0.32219089]
[1740960652332,0.29550171,622.52,620.75,0.32219089]
[1740960652532,0.29550171,622.51,620.75,0.32219089]
[1740960652736,0.29550171,622.5,620.75,0.32219089]
[1740960652937,0.29550171,622.49,620.75,0.32219089]
[1740960653138,0.29550171,622.48,620.75,0.32219089]
[1740960653433,0.29550171,622.47,620.75,0.32219089]
[1740960653633,0.32126449,622.54,620.75,0.32219089]
[1740960653634,0.29550171,622.53,620.75,0.32219089]
[1740960653833,0.29556327,622.52,620.75,0.32219089]
[1740960654136,0.32126449,622.54,620.75,0.32219089]
[1740960654137,0.29556327,622.51,620.75,0.32219089]
[1740960654332,0.29556327,622.53,620.75,0.32219089]
[1740960654536,0.29556327,622.52,620.75,0.32219089]
[1740960654838,0.29556327,622.51,620.75,0.32219089]
[1740960655037,0.29556327,622.5,620.75,0.32219089]
[1740960655236,0.29556327,622.49,620.75,0.32219089]
[1740960655436,0.32126449,622.54,620.75,0.32219089]
[1740960655639,0.29556327,622.53,620.75,0.32219089]
[1740960656133,0.32127481,622.52,620.75,0.32219089]
[1740960656339,0.29556327,622.51,620.75,0.32219089]
[1740960656940,0.962,622.5,620.75,0.32219089]
[1740960657245,0.29556327,622.49,620.75,0.32219089]
[1740960658839,0.29560401,622.48,620.75,0.32219089]
[1740960659037,0.29560401,622.49,620.75,0.32219089]
[1740960659237,0.29560401,622.48,620.75,0.32219089]
[1740960659440,0.29560401,622.49,620.75,0.32219089]
[1740960659640,0.29560401,622.48,620.75,0.32219089]
[1740960659837,0.29560401,622.47,620.75,0.32219089]
[1740960660038,0.962,622.5,620.75,0.32219089]
[1740960660039,0.29560401,622.46,620.75,0.32219089]
[1740960660240,0.61691495,622.45,620.75,0.32219089]
[1740960660538,0.61691967,622.44,620.75,0.32219089]
[1740960660740,0.29560356,622.43,620.75,0.32219089]
[1740960661445,0.32132643,622.42,620.75,0.32219089]
[1740960661842,0.29558154,622.41,620.75,0.32219089]
[1740960662852,1.103,622.4,620.75,0.32219089]
[1740960663050,0.29558154,622.39,620.75,0.32219089]
[1740960665357,0.29554377,622.38,620.75,0.32219089]
[1740960665556,0.29554377,622.39,620.75,0.32219089]
[1740960665757,0.29554377,622.38,620.75,0.32219089]
[1740960665953,1.388,622.37,620.75,0.32219089]
[1740960666154,0.29554377,622.36,620.75,0.32219089]
[1740960668459,1.388,622.37,620.75,0.32219089]
[1740960668654,0.29555602,622.36,620.75,0.32219089]
[1740960672060,1.388,622.37,620.75,0.32219089]
[1740960672859,0.21,622.36,620.75,0.32219089]
[1740960676965,0.944,622.35,620.75,0.32219089]
[1740960678769,1.054,622.34,620.75,0.32219089]
[1740960682973,1.054,622.34,620.89,1.189564]
[1740960683275,1.054,622.34,620.91,0.32210787]
[1740960688378,0.29554947,622.33,620.91,0.32210787]
[1740960689279,1.44154947,622.33,620.91,0.32210787]
[1740960689479,0.29554947,622.32,620.91,0.32210787]
[1740960689678,1.146,622.33,620.91,0.32210787]
[1740960689877,0.29561608,622.32,620.91,0.32210787]
[1740960691378,1.55833026,622.31,620.91,0.32210787]
[1740960691582,1.85394634,622.3,620.91,0.32210787]
[1740960691782,1.85394634,622.29,620.91,0.32210787]
[1740960691977,1.85337021,622.28,620.91,0.32210787]
[1740960692182,1.85337021,622.27,620.91,0.32210787]
[1740960692381,1.85322761,622.26,620.91,0.32210787]
[1740960692683,1.85322761,622.25,620.91,0.32210787]
[1740960692883,1.85332757,622.24,620.91,0.32210787]
[1740960693083,1.85332757,622.23,620.91,0.32210787]
[1740960693283,1.85332757,622.22,620.91,0.32210787]
[1740960693483,1.85332757,622.21,620.91,0.32210787]
[1740960693678,1.85332757,622.2,620.91,0.32210787]
[1740960693984,1.85342133,622.19,620.91,0.32210787]
[1740960694182,1.85342133,622.18,620.91,0.32210787]
[1740960694384,1.85342133,622.17,620.91,0.32210787]
[1740960694582,1.85342133,622.16,620.91,0.32210787]
[1740960694778,1.85342133,622.15,620.91,0.32210787]
[1740960694977,1.85342133,622.14,620.91,0.32210787]
[1740960695178,1.85342133,622.13,620.91,0.32210787]
[1740960695380,1.336,622.2,620.91,0.32210787]
[1740960695381,1.85342133,622.12,620.91,0.32210787]
[1740960695581,1.85342133,622.11,620.91,0.32210787]
[1740960695779,0.29561608,622.1,620.91,0.32210787]
[1740960696078,1.055,622.09,620.91,0.32210787]
[1740960696278,0.29565861,622.08,620.91,0.32210787]
[1740960698080,0.50565861,622.08,620.91,0.32210787]
[1740960698285,0.29565861,622.07,620.91,0.32210787]
[1740960698786,0.21,622.08,620.91,0.32210787]
[1740960702287,1.605,622.08,620.91,0.32210787]
[1740960708686,0.29562921,622.07,620.91,0.32210787]
[1740960708885,1.55950493,622.07,620.91,0.32210787]
[1740960709092,0.29562462,622.06,620.91,0.32210787]
[1740960709293,0.29562462,622.05,620.91,0.32210787]
[1740960709493,0.29562462,622.04,620.91,0.32210787]
[1740960709688,0.29562462,622.07,620.91,0.32210787]
[1740960709887,1.605,622.08,620.91,0.32210787]
[1740960710092,0.29561918,622.07,620.91,0.32210787]
[1740960711489,1.075,622.07,620.91,0.32210787]
[1740960713088,2.63386265,622.07,620.91,0.32210787]
[1740960713393,1.55886265,622.06,620.91,0.32210787]
[1740960713593,2.63386265,622.07,620.91,0.32210787]
[1740960714493,1.075,622.07,620.91,0.32210787]
[1740960714696,0.2956096,622.06,620.91,0.32210787]
[1740960715088,1.075,622.07,620.91,0.32210787]
[1740960715493,0.29561631,622.06,620.91,0.32210787]
[1740960716395,1.075,622.07,620.91,0.32210787]
[1740960716891,1.85313968,622.06,620.91,0.32210787]
[1740960717096,1.5574473,622.05,620.91,0.32210787]
[1740960717395,1.075,622.07,620.91,0.32210787]
[1740960717396,1.85316735,622.04,620.91,0.32210787]
[1740960717596,1.075,622.07,620.91,0.32210787]
[1740960717597,1.85316735,622.03,620.91,0.32210787]
[1740960717791,1.85316735,622.02,620.91,0.32210787]
[1740960717997,1.85316735,622.01,620.91,0.32210787]
[1740960718197,1.85316735,622.0,620.91,0.32210787]
[1740960718393,1.85316735,621.99,620.91,0.32210787]
[1740960718597,1.85316735,621.98,620.91,0.32210787]
[1740960718791,1.85316735,621.97,620.91,0.32210787]
[1740960718996,1.85316735,621.96,620.91,0.32210787]
[1740960719189,1.85316735,621.95,620.91,0.32210787]
[1740960719395,1.85316735,621.94,620.91,0.32210787]
[1740960719594,0.29572005,621.93,620.91,0.32210787]
[1740960719792,0.29572005,621.92,620.91,0.32210787]
[1740960719994,1.5574473,621.98,620.91,0.32210787]
[1740960720192,1.85317003,621.97,620.91,0.32210787]
[1740960720396,1.85318161,621.96,620.91,0.32210787]
[1740960720696,1.85318161,621.95,620.91,0.32210787]
[1740960720897,1.5574473,622.0,620.91,0.32210787]
[1740960721097,1.85314308,621.99,620.91,0.32210787]
[1740960721298,1.85314308,621.98,620.91,0.32210787]
[1740960721499,1.85314308,621.97,620.91,0.32210787]
[1740960721694,1.5574473,621.96,620.91,0.32210787]
[1740960721902,1.85314308,621.95,620.91,0.32210787]
[1740960722099,1.85314308,621.94,620.91,0.32210787]
[1740960722302,1.85314308,621.93,620.91,0.32210787]
[1740960722503,1.85314308,621.92,620.91,0.32210787]
[1740960722698,1.5574473,621.91,620.91,0.32210787]
[1740960722898,1.5574473,622.0,620.91,0.32210787]
[1740960723098,1.5574473,621.99,620.91,0.32210787]
[1740960723295,1.5574473,621.98,620.91,0.32210787]
[1740960723499,1.5574473,621.97,620.91,0.32210787]
[1740960723702,1.85318526,621.96,620.91,0.32210787]
[1740960723900,1.5574473,621.95,620.91,0.32210787]
[1740960724200,1.5574473,621.94,620.91,0.32210787]
[1740960724400,1.5574473,621.93,620.91,0.32210787]
[1740960724600,1.5574473,622.0,620.91,0.32210787]
[1740960724803,1.5574473,621.99,620.91,0.32210787]
[1740960725003,1.5574473,621.98,620.91,0.32210787]
[1740960725199,1.5574473,621.97,620.91,0.32210787]
[1740960725403,1.5574473,622.0,620.91,0.32210787]
[1740960725603,1.8531523,621.99,620.91,0.32210787]
[1740960725902,1.8531523,621.98,620.91,0.32210787]
[1740960726100,0.295705,621.97,620.91,0.32210787]
[1740960726298,1.5574473,621.96,620.91,0.32210787]
[1740960726504,0.992,621.96,620.91,0.32210787]
[1740960726704,1.85316462,621.95,620.91,0.32210787]
[1740960726900,1.85316462,621.94,620.91,0.32210787]
[1740960727098,1.85316462,621.93,620.91,0.32210787]
[1740960727303,1.85316462,621.92,620.91,0.32210787]
[1740960727500,1.85316462,621.91,620.91,0.32210787]
[1740960727699,0.992,621.96,620.91,0.32210787]
[1740960727700,1.85316462,621.9,620.91,0.32210787]
[1740960727904,1.85316462,621.89,620.91,0.32210787]
[1740960728101,1.85321145,621.88,620.91,0.32210787]
[1740960728307,1.85321145,621.87,620.91,0.32210787]
[1740960728506,1.85321145,621.86,620.91,0.32210787]
[1740960728806,0.29576415,621.85,620.91,0.32210787]
[1740960729005,1.85321145,621.94,620.91,0.32210787]
[1740960729206,1.85321145,621.93,620.91,0.32210787]
[1740960729510,3.01321145,621.92,620.91,0.32210787]
[1740960729709,1.85321145,621.91,620.91,0.32210787]
[1740960729905,1.85321145,621.9,620.91,0.32210787]
[1740960730102,1.85321145,621.89,620.91,0.32210787]
[1740960730305,1.85321145,621.88,620.91,0.32210787]
[1740960730504,1.85321145,621.87,620.91,0.32210787]
[1740960730705,1.85321145,621.86,620.91,0.32210787]
[1740960730906,0.29576415,621.85,620.91,0.32210787]
[1740960731207,0.29576415,621.84,620.91,0.32210787]
[1740960731402,0.29576415,621.9,620.91,0.32210787]
[1740960731810,0.29576415,621.91,620.91,0.32210787]
[1740960732013,1.85321145,621.9,620.91,0.32210787]
[1740960732205,0.29576415,621.89,620.91,0.32210787]
[1740960732409,1.5574473,621.91,620.91,0.32210787]
[1740960732410,0.29576415,621.88,620.91,0.32210787]
[1740960732608,0.29576415,621.87,620.91,0.32210787]
[1740960732805,0.29576415,621.86,620.91,0.32210787]
[1740960733005,1.16,621.92,620.91,0.32210787]
[1740960733006,1.5574473,621.87,620.91,0.32210787]
[1740960733209,0.29576807,621.86,620.91,0.32210787]
[1740960733405,1.85321537,621.9,620.91,0.32210787]
[1740960733608,1.85321418,621.89,620.91,0.32210787]
[1740960733913,1.85321418,621.88,620.91,0.32210787]
[1740960734111,1.85321418,621.87,620.91,0.32210787]
[1740960734312,1.85321418,621.86,620.91,0.32210787]
[1740960734512,1.85321418,621.85,620.91,0.32210787]
[1740960734813,1.85321418,621.84,620.91,0.32210787]
[1740960735109,1.85321418,621.83,620.91,0.32210787]
[1740960735306,1.85321418,621.82,620.91,0.32210787]
[1740960735510,0.29576688,621.81,620.91,0.32210787]
[1740960735711,1.85321418,621.9,620.91,0.32210787]
[1740960735907,1.85321418,621.89,620.91,0.32210787]
[1740960736111,1.85321418,621.88,620.91,0.32210787]
[1740960736307,1.85323719,621.87,620.91,0.32210787]
[1740960736514,1.85323719,621.86,620.91,0.32210787]
[1740960736713,0.29578989,621.85,620.91,0.32210787]
[1740960736914,0.29578989,621.9,620.91,0.32210787]
[1740960737115,0.29578989,621.89,620.91,0.32210787]
[1740960737416,0.29578989,621.88,620.91,0.32210787]
[1740960737609,0.29578989,621.91,620.91,0.32210787]
[1740960737814,1.5574473,621.91,620.91,0.32210787]
[1740960738009,0.29572793,621.9,620.91,0.32210787]
[1740960738710,0.29572793,621.91,620.91,0.32210787]
[1740960738914,0.29572793,621.9,620.91,0.32210787]
[1740960739110,0.29572793,621.91,620.91,0.32210787]
[1740960739319,0.211,621.89,620.91,0.32210787]
[1740960740712,1.157,621.88,620.91,0.32210787]
[1740960741614,1.208,621.87,620.91,0.32210787]
[1740960744619,0.997,621.86,620.91,0.32210787]
[1740960745020,0.29572482,621.85,620.91,0.32210787]
[1740960747819,2.54680258,621.86,620.91,0.32210787]
[1740960748021,1.8455685,621.85,620.91,0.32210787]
[1740960748219,0.29576592,621.84,620.91,0.32210787]
[1740960748621,0.29576592,621.83,620.91,0.32210787]
[1740960748919,0.29576592,621.82,620.91,0.32210787]
[1740960749120,1.84924472,621.83,620.91,0.32210787]
[1740960749316,1.84924472,621.82,620.91,0.32210787]
[1740960749519,1.84924472,621.81,620.91,0.32210787]
[1740960749819,1.84924472,621.8,620.91,0.32210787]
[1740960750120,1.84924472,621.79,620.91,0.32210787]
[1740960750319,1.84924472,621.78,620.91,0.32210787]
[1740960750518,1.84924472,621.77,620.91,0.32210787]
[1740960750720,1.84924472,621.76,620.91,0.32210787]
[1740960751014,1.84924472,621.75,620.91,0.32210787]
[1740960751220,1.84932375,621.74,620.91,0.32210787]
[1740960751423,1.84932375,621.73,620.91,0.32210787]
[1740960751622,1.84932375,621.72,620.91,0.32210787]
[1740960751817,1.84932375,621.71,620.91,0.32210787]
[1740960752021,1.84932375,621.7,620.91,0.32210787]
[1740960752220,1.84932375,621.69,620.91,0.32210787]
[1740960752422,0.29584495,621.68,620.91,0.32210787]
[1740960752622,0.29584495,621.84,620.91,0.32210787]
[1740960752818,0.29584495,621.83,620.91,0.32210787]
[1740960753128,1.84940501,621.82,620.91,0.32210787]
[1740960753422,1.84940501,621.81,620.91,0.32210787]
[1740960753623,1.84940501,621.8,620.91,0.32210787]
[1740960753823,0.29584495,621.79,620.91,0.32210787]
[1740960754020,0.29584495,621.78,620.91,0.32210787]
[1740960754222,0.29584495,621.77,620.91,0.32210787]
[1740960754418,0.29584495,621.82,620.91,0.32210787]
[1740960754625,0.29584495,621.81,620.91,0.32210787]
[1740960754820,0.29584495,621.8,620.91,0.32210787]
[1740960755025,1.84940501,621.82,620.91,0.32210787]
[1740960755227,0.29584495,621.81,620.91,0.32210787]
[1740960755527,0.29584495,621.8,620.91,0.32210787]
[1740960755724,0.29584495,621.79,620.91,0.32210787]
[1740960755925,1.84940501,621.84,620.91,0.32210787]
[1740960756121,1.55356006,621.85,620.91,0.32210787]
[1740960756326,1.84933101,621.84,620.91,0.32210787]
[1740960756627,1.84933101,621.83,620.91,0.32210787]
[1740960756828,0.29577095,621.82,620.91,0.32210787]
[1740960757128,0.29577095,621.81,620.91,0.32210787]
[1740960757330,0.997,621.86,620.91,0.32210787]
[1740960757331,1.84787948,621.83,620.91,0.32210787]
[1740960757522,1.84787948,621.82,620.91,0.32210787]
[1740960757722,1.84787948,621.81,620.91,0.32210787]
[1740960758025,1.84787948,621.8,620.91,0.32210787]
[1740960758227,1.55210853,621.82,620.91,0.32210787]
[1740960758428,1.84788485,621.81,620.91,0.32210787]
[1740960758624,1.55210853,621.82,620.91,0.32210787]
[1740960759029,1.55210853,621.81,620.91,0.32210787]
[1740960759230,1.55210853,621.8,620.91,0.32210787]
[1740960759432,1.55210853,621.79,620.91,0.32210787]
[1740960759634,1.55210853,621.78,620.91,0.32210787]
[1740960759834,1.55210853,621.77,620.91,0.32210787]
[1740960760031,1.55210853,621.78,620.91,0.32210787]
[1740960760232,1.55210853,621.77,620.91,0.32210787]
[1740960760437,1.55210853,621.76,620.91,0.32210787]
[1740960760639,1.55210853,621.75,620.91,0.32210787]
[1740960760839,1.55210853,621.74,620.91,0.32210787]
[1740960761140,1.55210853,621.73,620.91,0.32210787]
[1740960761339,1.55210853,621.72,620.91,0.32210787]
[1740960761542,1.55210853,621.78,620.91,0.32210787]
[1740960761738,0.211,621.71,620.91,0.32210787]
[1740960768351,1.55297659,621.7,620.91,0.32210787]
[1740960768650,1.55297659,621.69,620.91,0.32210787]
[1740960768850,1.55297659,621.68,620.91,0.32210787]
[1740960769045,1.55297659,621.67,620.91,0.32210787]
[1740960769250,1.55297659,621.66,620.91,0.32210787]
[1740960769451,1.55297659,621.65,620.91,0.32210787]
[1740960769654,1.55297659,621.64,620.91,0.32210787]
[1740960769845,0.211,621.71,620.91,0.32210787]
[1740960769846,1.55297659,621.7,620.91,0.32210787]
[1740960770045,1.84879358,621.69,620.91,0.32210787]
[1740960770249,1.55297659,621.68,620.91,0.32210787]
[1740960770451,1.55297659,621.67,620.91,0.32210787]
[1740960770650,1.55297659,621.66,620.91,0.32210787]
[1740960770953,1.55297659,621.65,620.91,0.32210787]
[1740960771151,1.55377708,621.64,620.91,0.32210787]
[1740960771352,1.55377708,621.63,620.91,0.32210787]
[1740960771652,1.55377708,621.62,620.91,0.32210787]
[1740960771846,1.55377708,621.61,620.91,0.32210787]
[1740960772050,1.55377708,621.6,620.91,0.32210787]
[1740960772352,1.55377708,621.59,620.91,0.32210787]
[1740960772551,1.55377708,621.58,620.91,0.32210787]
[1740960772749,1.55377708,621.57,620.91,0.32210787]
[1740960772948,1.55377708,621.56,620.91,0.32210787]
[1740960773150,1.55382988,621.55,620.91,0.32210787]
[1740960773452,1.55382988,621.54,620.91,0.32210787]
[1740960773649,1.55382988,621.53,620.91,0.32210787]
[1740960773849,1.161,621.62,619.88,1.189564]
[1740960773850,1.55382988,621.52,619.88,1.189564]
[1740960774045,1.55382988,621.51,619.9,0.32263268]
[1740960774351,1.55382988,621.5,619.9,0.32263268]
[1740960774546,1.55382988,621.49,619.9,0.32263268]
[1740960774749,1.55382988,621.48,619.9,0.32263268]
[1740960775052,1.55382988,621.47,619.9,0.32263268]
[1740960775352,1.55382988,621.46,619.9,0.32263268]
[1740960775651,1.55382988,621.45,619.9,0.32263268]
[1740960775852,1.55382988,621.44,619.9,0.32263268]
[1740960776054,1.55382988,621.43,619.9,0.32263268]
[1740960776354,1.84982045,621.42,619.9,0.32263268]
[1740960776546,1.84982045,621.41,619.9,0.32263268]
[1740960776746,1.84982045,621.4,619.9,0.32263268]
[1740960777053,1.84982045,621.39,619.9,0.32263268]
[1740960777249,1.84982045,621.38,619.9,0.32263268]
[1740960777448,1.84982045,621.37,619.9,0.32263268]
[1740960777748,1.84982045,621.36,619.9,0.32263268]
[1740960777950,1.84982045,621.35,619.9,0.32263268]
[1740960778145,1.55382988,621.34,619.9,0.32263268]
[1740960778350,1.55382988,621.33,619.9,0.32263268]
[1740960778553,0.211,621.36,619.9,0.32263268]
[1740960779254,1.2,621.35,619.9,0.32263268]
[1740960781152,2.74993554,621.35,619.9,0.32263268]
[1740960781350,1.54993554,621.34,619.9,0.32263268]
[1740960781553,1.2,621.35,619.9,0.32263268]
[1740960782855,1.046,621.34,619.9,0.32263268]
[1740960783258,1.54993554,621.33,619.9,0.32263268]
[1740960783454,1.54993554,621.32,619.9,0.32263268]
[1740960783660,1.54993554,621.31,619.9,0.32263268]
[1740960783854,1.54993554,621.33,619.9,0.32263268]
[1740960784053,1.54811042,621.32,619.9,0.32263268]
[1740960784259,1.54811042,621.33,619.9,0.32263268]
[1740960784456,0.29600564,621.32,619.9,0.32263268]
[1740960784658,2.59411042,621.34,619.9,0.32263268]
[1740960784659,0.29600564,621.31,619.9,0.32263268]
[1740960784860,2.59411042,621.34,619.9,0.32263268]
[1740960785062,1.84411831,621.33,619.9,0.32263268]
[1740960785362,0.29600789,621.32,619.9,0.32263268]
[1740960785661,0.29599869,621.31,619.9,0.32263268]
[1740960785862,0.29599869,621.3,619.9,0.32263268]
[1740960786065,0.29599869,621.29,619.9,0.32263268]
[1740960786262,1.54625703,621.28,619.9,0.32263268]
[1740960786462,0.29599869,621.27,619.9,0.32263268]
[1740960786762,0.29599869,621.26,619.9,0.32263268]
[1740960787063,0.29599869,621.25,619.9,0.32263268]
[1740960787265,1.54625703,621.32,619.9,0.32263268]
[1740960787266,1.84225572,621.31,619.9,0.32263268]
[1740960787456,1.84225572,621.3,619.9,0.32263268]
[1740960787660,1.84225572,621.29,619.9,0.32263268]
[1740960787861,1.84225572,621.28,619.9,0.32263268]
[1740960788161,0.29599869,621.27,619.9,0.32263268]
[1740960788758,0.29604039,621.26,619.9,0.32263268]
[1740960788958,0.29604039,621.25,619.9,0.32263268]
[1740960789161,1.329,621.29,619.9,0.32263268]
[1740960789162,0.29604039,621.28,619.9,0.32263268]
[1740960789461,0.29603971,621.27,619.9,0.32263268]
[1740960789662,0.29603971,621.26,619.9,0.32263268]
[1740960789861,1.329,621.29,619.9,0.32263268]
[1740960790660,2.87525703,621.29,619.9,0.32263268]
[1740960790867,1.54625703,621.28,619.9,0.32263268]
[1740960791162,1.329,621.29,619.9,0.32263268]
[1740960795274,0.211,621.28,619.9,0.32263268]
[1740960797270,1.055,621.27,619.9,0.32263268]
[1740960799971,1.15,621.26,619.9,0.32263268]
[1740960806080,0.91,621.25,619.9,0.32263268]
[1740960806478,1.064,621.24,619.9,0.32263268]
[1740960812479,1.54960495,621.23,619.9,0.32263268]
[1740960812686,1.54960495,621.22,619.9,0.32263268]
[1740960812985,1.54960495,621.23,619.9,0.32263268]
[1740960813185,1.54960495,621.22,619.9,0.32263268]
[1740960813485,1.54960495,621.23,619.9,0.32263268]
[1740960813681,1.55053593,621.23,619.9,0.32263268]
[1740960814287,0.29604181,621.22,619.9,0.32263268]
[1740960814483,0.29604181,621.21,619.9,0.32263268]
[1740960815293,0.211,621.22,619.9,0.32263268]
[1740960816089,1.094,621.21,619.9,0.32263268]
[1740960817387,1.055,621.2,619.9,0.32263268]
[1740960820196,2.511,621.2,619.9,0.32263268]
[1740960820395,1.55053593,621.19,619.9,0.32263268]
[1740960821098,2.511,621.2,619.9,0.32263268]
[1740960822600,2.511,621.2,619.92,1.189564]
[1740960824603,2.511,621.2,619.94,0.32261186]
[1740960825807,2.511,621.2,619.98,1.189564]
[1740960826304,2.511,621.2,620.0,0.32258064]
[1740960827302,3.823,621.2,620.0,0.32258064]
[1740960827906,3.823,621.2,620.03,1.189564]
[1740960828117,3.823,621.2,620.05,0.32255463]
[1740960838514,1.54985115,621.19,620.05,0.32255463]
[1740960838715,3.823,621.2,620.05,0.32255463]
[1740960839011,1.5496817,621.19,620.05,0.32255463]
[1740960839214,1.54949588,621.19,620.05,0.32255463]
[1740960839611,1.54938648,621.19,620.05,0.32255463]
[1740960840418,2.768,621.2,620.05,0.32255463]
[1740960841514,3.738,621.2,620.05,0.32255463]
[1740960842116,1.54967883,621.19,620.05,0.32255463]
[1740960844717,1.76067883,621.19,620.05,0.32255463]
[1740960845717,0.211,621.19,620.05,0.32255463]
[1740960845922,1.76058849,621.19,620.05,0.32255463]
[1740960847121,0.211,621.19,620.05,0.32255463]
[1740960848524,1.888,621.19,620.05,0.32255463]
[1740960851721,3.22,621.19,620.05,0.32255463]
[1740960860625,4.352,621.19,620.05,0.32255463]
[1740960863535,4.352,621.19,620.08,1.189564]
[1740960864433,4.352,621.19,620.1,0.32252862]
[1740960865530,5.407,621.19,620.1,0.32252862]
[1740960866137,5.407,621.19,620.11,1.189564]
[1740960866332,5.407,621.19,620.13,0.32251302]
[1740960869640,6.445,621.19,620.13,0.32251302]
[1740960880447,6.445,621.19,620.22,1.189564]
[1740960880641,6.445,621.19,620.24,0.32245582]
[1740960882645,6.445,621.19,620.29,1.189564]
[1740960884440,6.445,621.19,620.4,1.189564]
[1740960886850,6.445,621.19,620.45,1.189564]
[1740960888550,6.445,621.19,619.91,2.41691759]
[1740960888551,6.445,621.19,620.51,1.189564]
[1740960890751,6.445,621.19,620.16,1.189564]
[1740960893156,6.445,621.19,620.12,1.189564]
[1740960895353,6.445,621.19,619.37,2.41691759]
[1740960895354,6.445,621.19,620.05,1.189564]
[1740960897657,6.445,621.19,620.2,1.189564]
[1740960899968,6.445,621.19,619.48,2.41691759]
[1740960899969,6.445,621.19,620.21,1.189564]
[1740960902669,6.445,621.19,620.17,1.189564]
[1740960906076,6.445,621.19,619.49,2.41691759]
[1740960906077,6.445,621.19,619.77,1.189564]
[1740960908279,6.445,621.19,620.09,1.189564]
[1740960910974,6.445,621.19,620.24,1.189564]
[1740960911580,6.445,621.19,620.26,0.32244542]
[1740960914173,6.445,621.19,620.43,1.189564]
[1740960916177,6.234,621.19,620.43,1.189564]
[1740960916376,3.864,621.19,620.43,1.189564]
[1740960916878,3.864,621.19,620.63,1.189564]
[1740960917282,1.055,621.19,620.63,1.189564]
[1740960917683,1.4250189,622.81,620.63,1.189564]
[1740960917882,0.61666044,622.8,620.73,0.32220127]
[1740960918181,0.29553007,622.79,620.73,0.32220127]
[1740960918381,1.85493155,622.78,620.73,0.32220127]
[1740960918577,0.29553007,622.77,620.73,0.32220127]
[1740960918881,0.29553007,622.76,620.73,0.32220127]
[1740960919182,0.50253007,622.75,620.73,0.32220127]
[1740960919384,1.8539485,622.74,620.73,0.32220127]
[1740960919682,0.29553007,622.73,620.73,0.32220127]
[1740960920477,3.191,622.72,620.73,0.32220127]